[Event "AI Cup Div-2 2023"]
[Site "Online"]
[Date "2023.09.25"]
[Round "1.1"]
[White "Eljanov, Pavel"]
[Black "Sarana, Alexey"]
[Result "0-1"]
[ECO "A08"]
[WhiteElo "2695"]
[BlackElo "2693"]
[Annotator "TA"]
[PlyCount "112"]
[EventDate "2023.09.18"]
[EventType "k.o."]
[EventCountry "NET"]
[SourceTitle "playchess.com"]
[Source "ChessBase"]
[SourceQuality "1"]
[TimeControl "900+3"]

{[%evp 9,112,7,6,0,0,0,0,0,-4,-3,6,-1,4,4,4,4,4,6,4,12,21,0,0,0,4,0,4,0,0,10,73,37,87,22,39,24,69,58,60,25,26,14,9,-28,34,37,72,81,65,71,64,8,8,8,8,9,16,8,8,0,0,-5,0,0,0,-87,-42,-38,-37,-35,-38,-70,-33,-13,-12,-12,-12,-32,-25,-52,-45,-71,-71,-71,-71,-71,-71,-71,-71,-9819,-29959,-29954,-29958,-29945,-29950,-12798,-7723,-29965,-29966,-29981,-29982,-29982,-29983,-29983,-29984]} 1. Nf3 {[%emt 0:00:05]} d5 {[%emt 0:00:05]} 2. g3 {[%emt 0:00:01]} Nf6 {[%emt 0:00:01]} 3. Bg2 {[%emt 0:00:02]} e6 {[%emt 0:00:01]} 4. O-O {[%emt 0:00:02]} Be7 {[%emt 0:00:01]} 5. d3 {[%emt 0:00:03]} c5 {[%emt 0:00:18]} 6. a4 {[%emt 0:00:22] A08: King's Indian Attack.} Nc6 {[%emt 0:00:02]} 7. Bf4 {[%emt 0:00:13] [#]} Bd6 $146 {[%emt 0:00:32]} ({Predecessor:} 7... h6 8. e4 O-O 9. e5 Nh7 10. Re1 b6 11. h4 Bb7 12. Nbd2 a6 13. Nf1 b5 {½-½ Andreikin,D (2735)-Anton Guijarro,D (2585) Wch Blitz Almaty 2022 (5)}) 8. Bxd6 {[%emt 0:00:34] The position is equal.} Qxd6 {[%emt 0:00:00]} 9. Na3 {[%emt 0:00:10][%cal Oe2e4]} O-O {[%emt 0:00:04] [#]} 10. e4 $1 {[%emt 0:00:11]} dxe4 {[%emt 0:00:15]} (10... Rd8 11. Nd2) 11. dxe4 {[%emt 0:00:19]} Nxe4 {[%emt 0:00:06]} 12. Re1 {[%emt 0:01:33]} (12. Qxd6 {simplifies} Nxd6 13. Nd2 Nf5 14. Nb3) 12... Rd8 {[%emt 0:01:46]} 13. Qxd6 {[%emt 0:02:13]} Nxd6 {[%emt 0:00:01]} 14. Rad1 {[%emt 0:00:18]} f6 {[%emt 0:01:49]} 15. Nb5 {[%emt 0:00:54] Prevents e5} Nf7 {[%emt 0:00:34]} 16. Rxd8+ {[%emt 0:00:32]} Ncxd8 {[%emt 0:00:14]} 17. Nd2 {[%emt 0:01:43]} a6 {[%emt 0:00:08]} 18. Na3 {[%emt 0:00:58]} Rb8 {[%emt 0:00:13]} 19. a5 {[%emt 0:00:10]} Kf8 {[%emt 0:00:13]} (19... Bd7 $11) 20. Ne4 {[%emt 0:00:14]} e5 {[%emt 0:01:45] [#]} (20... b5 $14) 21. Nxc5 {[%emt 0:00:12]} ({White should try} 21. Nc4 $1 $16) 21... Ne6 $11 {[%emt 0:00:01]} 22. Na4 {[%emt 0:00:10]} Bd7 {[%emt 0:00:13]} 23. Nb6 {[%emt 0:00:02]} Ke7 {[%emt 0:00:04]} 24. f4 {[%emt 0:01:03]} Bc6 {[%emt 0:00:11]} 25. Bxc6 {[%emt 0:00:09]} bxc6 {[%emt 0:00:00]} 26. Nac4 {[%emt 0:00:01][%cal Rf4e5]} Rd8 {[%emt 0:00:02]} (26... Nd4 $11 27. Rd1 Rd8) 27. fxe5 $14 {[%emt 0:00:11]} fxe5 {[%emt 0:00:15]} 28. c3 {[%emt 0:00:42]} ({Much worse is} 28. Nxe5 Nxe5 29. Rxe5 Rd2 $11) 28... Kf6 {[%emt 0:00:03]} 29. Rf1+ {[%emt 0:00:07]} Ke7 {[%emt 0:00:01]} 30. Kf2 {[%emt 0:00:12]} (30. Kg2 $14) 30... Nc5 $11 {[%emt 0:01:05]} 31. Ke2 {[%emt 0:00:06]} Nb3 $1 {[%emt 0:00:10]} 32. Rd1 {[%emt 0:00:43]} Ke6 {[%emt 0:00:08]} 33. Rxd8 {[%emt 0:00:13]} Nxd8 {[%emt 0:00:00][%mdl 4096] Endgame KNN-KNN} 34. Kd3 {[%emt 0:00:51]} Nb7 {[%emt 0:00:24]} 35. Na4 {[%emt 0:00:34]} h5 {[%emt 0:00:25]} 36. h3 {[%emt 0:00:22]} g6 {[%emt 0:00:22]} 37. Ke3 {[%emt 0:00:17]} (37. h4 $11) 37... N3xa5 {[%emt 0:00:10]} 38. Nd2 {[%emt 0:00:04] Black must now prevent b4.} Nd6 {[%emt 0:00:17]} 39. b3 {[%emt 0:00:13] Against Ndc4+} Nab7 {[%emt 0:00:12] Prevents Nc5+.} 40. g4 {[%emt 0:00:01]} hxg4 {[%emt 0:00:04]} 41. hxg4 {[%emt 0:00:00]} Ne8 {[%emt 0:00:02]} 42. Ne4 {[%emt 0:00:02]} Nf6 {[%emt 0:00:03]} 43. Nec5+ {[%emt 0:00:09]} Nxc5 {[%emt 0:00:01]} 44. Nxc5+ $15 {[%emt 0:00:00] KN-KN} Kd6 {[%emt 0:00:00]} 45. Nxa6 {[%emt 0:00:03]} Nxg4+ {[%emt 0:00:01]} 46. Kf3 {[%emt 0:00:01]} Nf6 {[%emt 0:00:01]} 47. c4 {[%emt 0:00:03]} c5 {[%emt 0:00:14]} 48. Ke3 {[%emt 0:00:02] [#]} e4 $1 {[%emt 0:01:27] Strongly threatening ...g5.} 49. Kf4 {[%emt 0:00:01][%mdl 8192] [#] This move loses the game for White.} (49. b4 $17) 49... g5+ $1 $19 {[%emt 0:00:01][%mdl 512]} 50. Ke3 {[%emt 0:00:01]} Kc6 {[%emt 0:00:12]} 51. b4 {[%emt 0:00:15]} cxb4 {[%emt 0:00:00][%mdl 64] Deflection} 52. Nxb4+ {[%emt 0:00:01]} Kc5 {[%emt 0:00:00]} 53. Na6+ {[%emt 0:00:09]} Kxc4 {[%emt 0:00:06] Black mates.} 54. Nc7 {[%emt 0:00:01]} Nd5+ {[%emt 0:00:01]} 55. Kxe4 {[%emt 0:00:05]} Nxc7 {[%emt 0:00:01]} 56. Kf5 {[%emt 0:00:00] [#]} Ne6 $1 {[%emt 0:00:00] Weighted Error Value: White=0.36/Black=0.10 (very precise)} 0-1

[Event "AI Cup Div-2 2023"]
[Site "Online"]
[Date "2023.09.25"]
[Round "1.1"]
[White "Fedoseev, Vladimir"]
[Black "Kuzubov, Yuriy"]
[Result "0-1"]
[ECO "D35"]
[WhiteElo "2683"]
[BlackElo "2625"]
[Annotator "TA"]
[PlyCount "62"]
[EventDate "2023.09.18"]
[EventType "k.o."]
[EventCountry "NET"]
[SourceTitle "playchess.com"]
[Source "ChessBase"]
[SourceQuality "1"]
[TimeControl "900+3"]

{[%evp 19,62,22,21,19,18,21,20,12,41,38,48,44,51,42,64,54,39,45,53,-35,-35,-37,-7,-8,0,-16,0,-27,-18,-266,-260,-255,-57,-427,-422,-588,-577,-963,-962,-959,-958,-955,-946,-927,-922]} 1. d4 {[%emt 0:00:04]} Nf6 {[%emt 0:00:05]} 2. c4 {[%emt 0:00:01]} e6 {[%emt 0:00:02]} 3. Nc3 {[%emt 0:00:01]} d5 {[%emt 0:00:14]} 4. cxd5 {[%emt 0:00:02]} exd5 {[%emt 0:00:01]} 5. Bg5 {[%emt 0:00:01]} c6 {[%emt 0:00:23]} 6. e3 {[%emt 0:00:02]} Be7 {[%emt 0:00:43]} 7. Bd3 {[%emt 0:00:03]} Nbd7 {[%emt 0:00:04]} 8. Nge2 {[%emt 0:00:04]} O-O {[%emt 0:00:13]} 9. O-O {[%emt 0:00:03]} Nh5 {[%emt 0:00:58]} 10. Bxe7 {[%emt 0:00:31]} Qxe7 {[%emt 0:00:00]} 11. Qd2 {[%emt 0:00:20] D35: Queen's Gambit Declined: Exchange Variation.} Re8 {[%emt 0:00:49]} 12. Rae1 {[%emt 0:00:09]} g6 {[%emt 0:01:29]} 13. Nc1 {[%emt 0:00:04] The position is equal.} Ndf6 {[%emt 0:00:27]} 14. f3 {[%emt 0:00:03]} c5 {[%emt 0:00:05]} 15. dxc5 {[%emt 0:00:57]} Qxc5 {[%emt 0:00:07]} 16. Nb3 {[%emt 0:00:00]} Qe7 {[%emt 0:00:18] [#]} 17. g4 $146 {[%emt 0:01:11]} ({Predecessor:} 17. Nb5 Ng7 18. N5d4 Ne6 19. a3 Bd7 20. Qb4 Qxb4 21. axb4 Rec8 22. Ra1 Kf8 23. Ra5 Nxd4 24. Nxd4 {1-0 Grebnev,A (2488)-Saidov,B (2318) Novorossiysk Small Land op 2023 (6)}) 17... Ng7 {[%emt 0:00:02]} 18. g5 {[%emt 0:00:00]} Nfh5 {[%emt 0:00:13]} 19. e4 {[%emt 0:00:03]} (19. Nxd5 $2 Qxg5+ 20. Kh1 Qxd5 $19) (19. f4 $14) 19... dxe4 $15 {[%emt 0:00:13]} 20. Nd5 {[%emt 0:00:25]} Qd6 {[%emt 0:03:18]} 21. fxe4 {[%emt 0:00:35]} Bh3 {[%emt 0:01:14]} 22. Rf3 {[%emt 0:00:05]} Bg4 {[%emt 0:00:20]} (22... Be6 $5 {[%cal Re6d5]} 23. Bb5 Bxd5 24. Bxe8 Rxe8 25. exd5 Rxe1+ 26. Qxe1 Qxd5 $11) 23. Bc4 {[%emt 0:00:43] Threatens to win with Nf6+.} Qe5 {[%emt 0:01:02]} (23... Bxf3 $2 24. Nf6+ Nxf6 25. Qxd6 Nxe4 26. Qf4 $18) 24. Nc5 $2 {[%emt 0:01:54] [#]} Rac8 $1 $19 {[%emt 0:00:49][%cal Oc8c5]} (24... Bxf3 25. Nd7 $18 (25. Nxb7 $2 Rab8 $19)) 25. Rxf7 {[%emt 0:00:04]} Rxc5 $2 {[%emt 0:00:18]} ({Black should play} 25... Kxf7 $19 26. Nf6+ Ke7) 26. Nf6+ $2 {[%emt 0:00:37][%mdl 8192]} (26. Ne7+ $1 $15 Kh8 27. Qf2) 26... Nxf6 {[%emt 0:01:32] Black is clearly winning.} 27. Re7+ {[%emt 0:00:45]} Be6 $1 {[%emt 0:00:15]} ({Not} 27... Rxc4 28. Rxe5 Rxe5 29. gxf6 $16) 28. gxf6 {[%emt 0:00:04]} Rxe7 {[%emt 0:00:26]} 29. fxe7 {[%emt 0:00:17]} Qg5+ {[%emt 0:00:02]} (29... Rxc4 $2 {is a self mate.} 30. Qd8+) 30. Qxg5 {[%emt 0:00:25]} Rxg5+ {[%emt 0:00:02]} 31. Kf2 {[%emt 0:00:00]} Bxc4 {[%emt 0:00:02] An entertaining game by Kuzubov.   Weighted Error Value: White=0.72/Black=0.18 (very precise)} 0-1

[Event "AI Cup Div-2 2023"]
[Site "Online"]
[Date "2023.09.25"]
[Round "1.1"]
[White "Safarli, Eltaj"]
[Black "Artemiev, Vladislav"]
[Result "1/2-1/2"]
[ECO "C77"]
[WhiteElo "2612"]
[BlackElo "2697"]
[Annotator "TA"]
[PlyCount "65"]
[EventDate "2023.09.18"]
[EventType "k.o."]
[EventCountry "NET"]
[SourceTitle "playchess.com"]
[Source "ChessBase"]
[SourceQuality "1"]
[TimeControl "900+3"]

{[%evp 11,65,8,13,7,18,12,27,20,32,16,17,10,16,10,16,0,14,0,6,0,8,0,26,22,24,19,19,10,9,10,9,9,15,2,3,4,3,3,6,12,3,7,9,8,5,0,0,0,0,0,0,0,0,0,0,0]} 1. e4 {[%emt 0:00:06]} e5 {[%emt 0:00:14]} 2. Nf3 {[%emt 0:00:03]} Nc6 {[%emt 0:00:01]} 3. Bb5 {[%emt 0:00:06][%cal Bf1b5,Bb5a4,Ba4b3,Bb3d5][%mdl 32]} a6 {[%emt 0:00:10]} 4. Ba4 {[%emt 0:00:02]} Nf6 {[%emt 0:00:02]} 5. Nc3 {[%emt 0:00:01]} b5 {[%emt 0:01:13]} 6. Bb3 {[%emt 0:00:01]} Be7 {[%emt 0:00:01]} 7. a4 $1 {[%emt 0:00:07][%mdl 4] now scores much better than the old 7.d3. C77: Ruy Lopez: 3...a6 4 Ba4 Nf6, unusual lines.} Rb8 {[%emt 0:00:06]} 8. axb5 {[%emt 0:00:01]} axb5 {[%emt 0:00:01]} 9. d3 {[%emt 0:00:05] White has an edge.} d6 {[%emt 0:01:05]} 10. Nd5 {[%emt 0:00:14]} Nxd5 {[%emt 0:00:57]} 11. Bxd5 {[%emt 0:01:53]} Nb4 {[%emt 0:00:38]} 12. Bb3 {[%emt 0:00:02]} c5 {[%emt 0:00:01]} 13. c3 {[%emt 0:00:22]} Na6 {[%emt 0:00:31]} 14. O-O {[%emt 0:00:10]} O-O {[%emt 0:00:02] [#]} 15. Re1 $146 {[%emt 0:00:24]} ({Predecessor:} 15. Ne1 Bg5 16. f4 Bxf4 17. Bxf4 exf4 18. Rxf4 c4 19. Bc2 cxd3 20. Nxd3 b4 21. Kh1 bxc3 22. bxc3 {½-½ Ponkratov,P (2582)-Magomedov,M (2511) Khanty-Mansiysk Governor Cup 6th 2010 (5)}) 15... Nc7 {[%emt 0:00:48]} 16. h3 {[%emt 0:00:26]} b4 {[%emt 0:02:41]} 17. Be3 {[%emt 0:01:25]} Be6 {[%emt 0:00:28]} 18. Bxe6 {[%emt 0:00:32]} Nxe6 {[%emt 0:00:02] The position is equal.} 19. d4 {[%emt 0:00:24]} bxc3 {[%emt 0:00:07]} 20. bxc3 {[%emt 0:00:01]} exd4 {[%emt 0:00:22]} 21. cxd4 {[%emt 0:00:00]} Bf6 {[%emt 0:01:02]} 22. Rc1 {[%emt 0:00:23]} cxd4 {[%emt 0:00:47]} 23. Nxd4 {[%emt 0:00:01]} Bxd4 {[%emt 0:01:28]} 24. Bxd4 {[%emt 0:00:02]} d5 {[%emt 0:00:02][%cal Bd6d5,Bd5e4][%mdl 32]} 25. Be5 {[%emt 0:01:31][%csl LRb8,LRd5]} Rb5 {[%emt 0:00:01]} 26. Qd3 {[%emt 0:00:19]} Ra5 {[%emt 0:02:19]} 27. Rcd1 {[%emt 0:01:23][%cal Re4d5]} dxe4 {[%emt 0:00:27]} 28. Qxd8 {[%emt 0:00:47]} Rxd8 {[%emt 0:00:02]} 29. Rxd8+ {[%emt 0:00:03]} Nxd8 $11 {[%emt 0:00:01] KRB-KRN} 30. Bc7 {[%emt 0:00:08]} Rd5 {[%emt 0:00:10]} 31. Bxd8 {[%emt 0:00:04]} Rxd8 {[%emt 0:00:02]} 32. Rxe4 {[%emt 0:00:02]} g6 {[%emt 0:00:01]} 33. g3 {[%emt 0:00:02] An interesting draw.   Weighted Error Value: White=0.05 (flawless) /Black=0.02 (flawless)} 1/2-1/2

[Event "AI Cup Div-2 2023"]
[Site "Online"]
[Date "2023.09.25"]
[Round "1.2"]
[White "Sarana, Alexey"]
[Black "Eljanov, Pavel"]
[Result "1-0"]
[ECO "E47"]
[WhiteElo "2693"]
[BlackElo "2695"]
[Annotator "TA"]
[PlyCount "101"]
[EventDate "2023.09.18"]
[EventType "k.o."]
[EventCountry "NET"]
[SourceTitle "playchess.com"]
[Source "ChessBase"]
[SourceQuality "1"]
[TimeControl "900+3"]

{[%evp 12,101,12,15,2,-8,4,14,34,27,23,16,24,18,25,7,6,7,10,12,71,66,70,24,29,0,0,-26,-33,-17,55,55,55,55,55,55,55,55,55,55,55,55,55,55,55,55,63,63,63,56,63,0,0,0,63,63,63,63,63,57,63,55,55,55,55,0,0,0,2,2,18,18,54,21,42,0,0,0,49,0,7,0,116,116,116,116,116,116,116,116,637,635]} 1. d4 {[%emt 0:00:04]} Nf6 {[%emt 0:00:06]} 2. c4 {[%emt 0:00:00]} e6 {[%emt 0:00:01]} 3. Nc3 {[%emt 0:00:01]} Bb4 {[%emt 0:00:03]} 4. e3 {[%emt 0:00:01]} O-O {[%emt 0:00:04]} 5. Bd3 {[%emt 0:00:00]} c5 {[%emt 0:00:02]} 6. Nge2 {[%emt 0:00:07]} cxd4 {[%emt 0:00:01]} 7. exd4 {[%emt 0:00:01]} d5 {[%emt 0:00:02] E47: Nimzo-Indian: Rubinstein: 5 Bd3 without ...d5.} 8. c5 {[%emt 0:00:01] [#]} e5 $146 {[%emt 0:00:47]} ({Predecessor:} 8... b6 9. a3 Bxc3+ 10. Nxc3 a5 11. O-O Ba6 12. Bf4 bxc5 13. dxc5 Bxd3 14. Qxd3 a4 15. Bd6 {½-½ Sarana,A (2629)-Lazavik,D (2453) Wch Rapid Almaty 2022 (3)}) 9. dxe5 {[%emt 0:00:19]} Nfd7 {[%emt 0:01:16] The position is equal.} (9... Ng4 $5 {[%cal Rb4c5]} 10. O-O Bxc5 $11) 10. O-O {[%emt 0:00:17]} Nxe5 {[%emt 0:00:18] [#]} 11. Nxd5 $1 {[%emt 0:00:03]} Nxd3 {[%emt 0:00:34]} 12. Qxd3 {[%emt 0:00:04]} Bxc5 {[%emt 0:00:05]} 13. Bf4 {[%emt 0:00:24] Rfd1 is the strong threat.} Be6 {[%emt 0:00:33]} 14. Nec3 {[%emt 0:00:21] Threatening Rad1.} (14. Rad1 {simplifies} Qxd5 15. Qxd5 Bxd5 16. Rxd5 Bb6 17. Nc3) 14... Nc6 {[%emt 0:00:38]} 15. Rad1 {[%emt 0:01:42]} Nb4 {[%emt 0:05:06]} (15... Bd4 $11) 16. Qb5 $16 {[%emt 0:01:40]} Nxd5 {[%emt 0:00:04]} 17. Nxd5 {[%emt 0:00:01]} (17. Qxc5 $14 b6 18. Qa3) 17... Rc8 {[%emt 0:02:19] [#]} 18. Nc7 {[%emt 0:01:04]} Qe7 {[%emt 0:00:54]} 19. Qxb7 {[%emt 0:03:04]} Bb6 {[%emt 0:00:49][%cal Rb6c7] This pair of bishops is nice.} 20. Rc1 {[%emt 0:00:01]} Bxa2 {[%emt 0:00:11] [#]} (20... g5 $11 21. Bg3 h5) 21. Qxc8 $1 $14 {[%emt 0:01:41]} Rxc8 {[%emt 0:00:16] [#]} 22. Nd5 {[%emt 0:00:00][%mdl 64] Discovered Attack} Qc5 {[%emt 0:01:22]} (22... Qd7 23. Ne7+) 23. Ne7+ {[%emt 0:00:33][%mdl 64] Deflection} Qxe7 {[%emt 0:00:12]} 24. Rxc8+ {[%emt 0:00:02]} Bd8 {[%emt 0:00:01]} 25. Rd1 {[%emt 0:01:12] Dodges Qd7} h6 {[%emt 0:00:02][%cal Og8h7]} 26. Rcxd8+ {[%emt 0:00:37]} Kh7 {[%emt 0:00:01]} 27. Be3 {[%emt 0:00:00]} a5 {[%emt 0:00:13]} 28. h3 {[%emt 0:00:10]} a4 {[%emt 0:00:03]} 29. R8d4 {[%emt 0:00:02]} Bb3 {[%emt 0:00:01]} 30. Rc1 {[%emt 0:00:01]} Qe5 {[%emt 0:00:11]} 31. Rc8 {[%emt 0:00:11]} (31. Rc3 $14) 31... Qf5 $1 $11 {[%emt 0:00:03]} 32. Rc1 {[%emt 0:00:06]} ({Better is} 32. Rb8 $11) 32... Qe5 $14 {[%emt 0:00:02]} 33. Rc3 {[%emt 0:00:03]} Qf5 {[%emt 0:00:02]} 34. Rd2 {[%emt 0:00:01]} Qb1+ {[%emt 0:00:03]} 35. Kh2 {[%emt 0:00:01]} Qf5 {[%emt 0:00:01][%cal Oa4a3]} 36. Rc5 {[%emt 0:00:01]} Qf6 {[%emt 0:00:03]} 37. Rd4 {[%emt 0:00:05]} Qe7 {[%emt 0:00:04]} 38. Rg4 {[%emt 0:00:13]} (38. Rc3 $14) 38... Qd6+ $11 {[%emt 0:00:08]} 39. Rg3 {[%emt 0:00:01]} Qf6 {[%emt 0:00:05]} 40. Rc3 {[%emt 0:00:17]} Qe5 {[%emt 0:00:05]} 41. Rd3 {[%emt 0:00:08] Strongly threatening Bd4.} Qc7 {[%emt 0:00:08]} (41... Qxb2 $2 42. Bd4 $18) 42. Bd4 {[%emt 0:00:07][%cal Od3c3] Hoping for Rc3!} f6 {[%emt 0:00:01]} 43. Rc3 {[%emt 0:00:28]} Qd6 {[%emt 0:00:01]} 44. Bc5 {[%emt 0:00:03]} Qb8 {[%emt 0:00:02]} (44... Qe5 $11) 45. Be3 {[%emt 0:00:10]} (45. Rcd3 $14 {was preferrable.}) 45... h5 {[%emt 0:00:02] Threatens to win with ...h4.} 46. h4 {[%emt 0:00:01]} Qb4 {[%emt 0:00:03] [#]} (46... Bf7 $11 {keeps the balance.}) 47. Rc7 $1 $16 {[%emt 0:00:05]} Qf8 {[%emt 0:00:04]} 48. Bc5 $36 {[%emt 0:00:06][%mdl 2048] White is on the roll.} Qg8 {[%emt 0:00:02]} 49. Bd4 {[%emt 0:00:02]} Qf8 {[%emt 0:00:01]} 50. Kg1 {[%emt 0:00:33] White has more active pieces.} Kg8 $2 {[%emt 0:00:02][%mdl 8192]} (50... Bd5 $16 51. Bc5 Qh8) 51. Bc5 {[%emt 0:00:07] A superb game by Sarana.   Weighted Error Value: White=0.10 (very precise) /Black=0.24 (precise)} 1-0

[Event "AI Cup Div-2 2023"]
[Site "Online"]
[Date "2023.09.25"]
[Round "1.2"]
[White "Niemann, Hans Moke"]
[Black "Duda, Jan-Krzysztof"]
[Result "1/2-1/2"]
[ECO "B52"]
[WhiteElo "2667"]
[BlackElo "2726"]
[Annotator "TA"]
[PlyCount "115"]
[EventDate "2023.09.18"]
[EventType "k.o."]
[EventCountry "NET"]
[SourceTitle "playchess.com"]
[Source "ChessBase"]
[SourceQuality "1"]
[TimeControl "900+3"]

{[%evp 14,114,10,0,22,-5,0,-9,-11,-10,-5,-12,-5,-10,0,0,0,0,0,7,41,18,12,24,37,0,0,0,0,0,6,12,12,12,12,12,12,12,12,10,12,12,12,12,12,17,124,124,124,131,131,131,131,131,131,124,124,124,124,131,131,116,131,34,62,124,45,0,34,3,3,3,34,34,34,34,34,0,0,0,0,0,62,62,63,34,34,34,34,34,34,34,34,34,34,34,34,34,34,34,34,0,0]} 1. e4 {[%emt 0:00:08]} c5 {[%emt 0:00:10]} 2. Nf3 {[%emt 0:00:02]} d6 {[%emt 0:00:01]} 3. Bb5+ {[%emt 0:00:02]} Bd7 {[%emt 0:00:02]} 4. Bxd7+ {[%emt 0:00:04]} Nxd7 {[%emt 0:00:01]} 5. O-O {[%emt 0:00:12]} Ngf6 {[%emt 0:00:02]} 6. d3 {[%emt 0:00:02]} e6 {[%emt 0:00:12]} 7. c4 {[%emt 0:00:14]} Be7 {[%emt 0:00:10]} 8. Nc3 {[%emt 0:00:01]} Ne5 {[%emt 0:00:05] B52: Sicilian: Moscow Variation with 3...Bd7.} 9. Ne1 {[%emt 0:00:02]} Nc6 {[%emt 0:00:14]} 10. f4 {[%emt 0:00:03]} O-O {[%emt 0:00:31]} 11. Nf3 {[%emt 0:00:02]} a6 {[%emt 0:00:00] [#]} 12. a4 $146 {[%emt 0:00:03]} ({Predecessor:} 12. b3 Rb8 13. d4 cxd4 14. Nxd4 Nxd4 15. Qxd4 b5 {½-½ Hajnal,Z (2406)-Groszpeter,A (2437) HUN-chT 1819 2018 (1.4)}) 12... Rb8 {[%emt 0:00:28]} 13. h3 {[%emt 0:00:02]} Ne8 {[%emt 0:00:09]} 14. Be3 {[%emt 0:00:05]} Nc7 {[%emt 0:00:01]} 15. d4 {[%emt 0:00:39]} b5 {[%emt 0:00:36]} 16. axb5 {[%emt 0:00:09]} cxd4 {[%emt 0:00:14]} 17. Nxd4 {[%emt 0:00:34]} Nxd4 {[%emt 0:00:02]} 18. Bxd4 {[%emt 0:00:02]} (18. Qxd4 {is interesting.} axb5 19. Ra7 d5 20. exd5 bxc4 21. dxe6 Qxd4 22. Bxd4 Nxe6 23. Rxe7 Nxd4 24. Re4) 18... axb5 {[%emt 0:00:02]} 19. cxb5 {[%emt 0:00:05]} (19. Qg4 {keeps more tension.} g6 20. f5 Bf6 21. Bxf6 Qxf6 22. fxe6 Qd4+ 23. Kh1) 19... Nxb5 {[%emt 0:00:04]} 20. Nxb5 {[%emt 0:00:01]} Rxb5 {[%emt 0:00:02]} 21. Qd3 {[%emt 0:00:11]} Rb7 {[%emt 0:01:04]} 22. f5 {[%emt 0:00:04]} Bf6 {[%emt 0:01:51]} 23. fxe6 {[%emt 0:00:50][%cal Of1f6] [#] And now Rxf6! would win.} Bxd4+ {[%emt 0:00:03]} 24. Qxd4 {[%emt 0:00:00]} fxe6 {[%emt 0:00:02]} 25. Rxf8+ {[%emt 0:00:04]} Qxf8 $11 {[%emt 0:00:00][%mdl 4096] Endgame KQR-KQR} 26. Qc4 {[%emt 0:00:03]} Rxb2 {[%emt 0:00:41]} 27. Qxe6+ {[%emt 0:00:04]} Kh8 {[%emt 0:00:01] ( -> ...Qf2+)} 28. Rf1 {[%emt 0:00:32][%cal Rf1f8] Wards off Qf2+} Qb8 {[%emt 0:00:47]} 29. Rf7 {[%emt 0:01:28]} h6 {[%emt 0:02:23] [#]} (29... d5 $1 $11 {keeps the balance.}) 30. Re7 $1 $36 {[%emt 0:01:04][%mdl 2048] Black is under strong pressure. White is more active.} Qb6+ {[%emt 0:01:30]} (30... Qf8 $2 31. Re8 $18 (31. Qxd6 $2 {gets mated.} Qf2+ 32. Kh2 Qxg2#) (31. Qxd6 $2 Qf2+ 32. Kh2 Qxg2#)) 31. Kh2 {[%emt 0:00:05] Intending Re8+ and mate.} Qf2 {[%emt 0:00:01][%csl Gb2][%cal Rf2g2]} 32. Re8+ {[%emt 0:01:14]} ({Of course not} 32. Qg4 $6 Qf8 33. Rc7 Kh7 $11) 32... Kh7 {[%emt 0:00:02][%csl Gb2][%cal Rf2g2]} 33. Qg8+ {[%emt 0:00:01]} (33. Qxd6 $2 Qxg2#) 33... Kg6 {[%emt 0:00:01][%csl Gb2][%cal Rf2g2]} 34. Re6+ {[%emt 0:00:01]} Kh5 {[%emt 0:00:00][%csl Gb2][%cal Rf2g2]} 35. Qxg7 {[%emt 0:01:11][%csl Gg7][%cal Re6h6]} Qf4+ {[%emt 0:00:37]} 36. Qg3 {[%emt 0:00:02]} Qxg3+ {[%emt 0:00:27]} 37. Kxg3 {[%emt 0:00:00] KR-KR} Rd2 {[%emt 0:00:01]} 38. h4 {[%emt 0:00:42]} (38. Rf6 $16) 38... Rd1 {[%emt 0:00:01]} 39. Rf6 {[%emt 0:00:07]} Re1 {[%emt 0:00:40]} 40. Re6 {[%emt 0:00:32]} Rd1 {[%emt 0:00:12]} 41. Kf4 {[%emt 0:00:37]} Rf1+ {[%emt 0:00:07]} 42. Ke3 {[%emt 0:00:08]} Re1+ {[%emt 0:00:08]} 43. Kf2 {[%emt 0:00:14]} Rd1 {[%emt 0:00:05]} 44. Kg3 {[%emt 0:00:04]} Re1 {[%emt 0:00:09]} 45. Kf3 {[%emt 0:00:16]} Rf1+ {[%emt 0:00:06]} 46. Ke2 {[%emt 0:00:15]} Rg1 {[%emt 0:00:04]} 47. Kf2 {[%emt 0:00:16]} (47. Rxd6 $11 Rxg2+ 48. Kf3) 47... Rd1 $14 {[%emt 0:00:03]} 48. g3 {[%emt 0:00:01]} Rd3 {[%emt 0:01:44]} 49. Kg2 {[%emt 0:00:13]} d5 {[%emt 0:00:23]} 50. e5 {[%emt 0:00:19] Threatening mate with Kh3.} Re3 {[%emt 0:00:37]} 51. Kh3 {[%emt 0:03:09] White threatens Rf6 and mate.} d4 {[%emt 0:00:02]} 52. Ra6 {[%emt 0:00:32]} d3 {[%emt 0:00:11]} 53. Rf6 {[%emt 0:00:23]} (53. Rd6 {simplifies} d2 54. Rxd2 Rxe5 55. Rd6) 53... d2 {[%emt 0:00:12]} 54. Rd6 {[%emt 0:00:00]} d1=Q {[%emt 0:00:06]} 55. Rxd1 {[%emt 0:00:01]} Rxe5 {[%emt 0:00:00]} 56. Rd6 {[%emt 0:00:01][%csl Gh3][%cal Rg3g4]} Re3 {[%emt 0:00:02][%cal Oe3g3]} 57. Kg2 {[%emt 0:00:02]} Rxg3+ {[%emt 0:00:05]} 58. Kxg3 {[%emt 0:00:03] Weighted Error Value: White=0.09 (flawless) /Black=0.07 (flawless)} 1/2-1/2